bitfinex-derivatives/quotes_SOLF0:USTF0_20260116
["timestamp","ask_amount","ask_price","bid_price","bid_amount"]
[1768567202502,11.50387025,143.81,143.75,3.26559749]
[1768567208107,9.33396244,143.81,143.75,3.26559749]
[1768567208407,11.50387025,143.81,143.75,3.26559749]
[1768567210514,0.04428208,143.79,143.77,0.04538814]
[1768567212212,3.11774452,143.79,143.73,9.52949749]
[1768567212415,3.11774452,143.79,143.74,3.26559749]
[1768567212809,5.24337025,143.79,143.74,3.26559749]
[1768567213415,3.07346244,143.79,143.74,3.26559749]
[1768567213613,0.04557934,143.78,143.74,3.26559749]
[1768567214414,0.04557934,143.78,143.74,9.52899749]
[1768567225312,0.04557934,143.78,143.75,3.16734703]
[1768567226423,0.04557934,143.78,143.73,3.16734703]
[1768567226618,2.21415538,143.78,143.73,3.16734703]
[1768567228522,8.47605538,143.78,143.73,3.16734703]
[1768567228722,8.47605538,143.78,143.71,3.11520594]
[1768567228723,3.02504739,143.77,143.71,3.11520594]
[1768567229627,5.19362343,143.77,143.71,3.11520594]
[1768567229830,11.45582343,143.77,143.71,3.11520594]
[1768567232835,9.28774739,143.76,143.69,3.11520594]
[1768567233134,9.28774739,143.76,143.7,3.11520594]
[1768567233528,11.45632343,143.76,143.7,3.11520594]
[1768567233730,0.05300222,143.74,143.7,3.11520594]
[1768567235831,0.05300222,143.74,143.7,9.38030594]
[1768567236131,97.3892,143.81,143.69,263.0]
[1768567236132,5.19362343,143.78,143.71,3.11520594]
[1768567240541,3.02504739,143.78,143.71,3.11520594]
[1768567242543,3.02504739,143.78,143.72,3.11520594]
[1768567242944,6.2617,143.79,143.72,3.11520594]
[1768567243244,9.28674739,143.79,143.72,3.11520594]
[1768567244037,9.28674739,143.79,143.73,3.11520594]
[1768567246345,3.02504739,143.79,143.74,3.11520594]
[1768567247737,3.02504739,143.79,143.74,9.37860594]
[1768567251555,3.2502453,143.81,143.76,3.01645135]
[1768567251756,6.2598,143.83,143.76,3.01645135]
[1768567251757,3.2502453,143.82,143.76,3.01645135]
[1768567253155,3.2502453,143.82,143.76,9.27905135]
[1768567254657,3.2502453,143.82,143.77,6.2621]
[1768567260951,3.2502453,143.81,143.74,3.01645135]
[1768567262855,3.2502453,143.81,143.75,9.27945135]
[1768567263055,3.2502453,143.81,143.76,3.01645135]
[1768567263356,3.2502453,143.81,143.76,9.27905135]
[1768567265464,3.2502453,143.83,143.77,9.27855135]
[1768567265860,2.16857604,143.84,143.78,3.01645135]
[1768567266361,3.2502453,143.85,143.78,3.01645135]
[1768567266553,5.41882134,143.88,143.79,3.01645135]
[1768567266756,5.27997035,143.87,143.79,3.01645135]
[1768567266960,3.2502453,143.87,143.81,6.2604]
[1768567267962,3.2502453,143.87,143.82,6.2598]
[1768567268959,2.16857604,143.88,143.83,6.2594]
[1768567270164,3.2502453,143.89,143.83,6.2594]
[1768567270464,5.41882134,143.89,143.83,6.2594]
[1768567272863,5.41882134,143.89,143.82,3.01645135]
[1768567274475,3.2502453,143.88,143.82,3.01645135]
[1768567275571,5.41882134,143.88,143.82,3.01645135]
[1768567276770,5.41882134,143.86,143.8,3.01645135]
[1768567278068,5.41882134,143.86,143.8,9.27725135]
[1768567278269,5.41882134,143.86,143.82,0.0504466]
[1768567279367,3.2502453,143.86,143.82,0.0504466]
[1768567279573,5.41882134,143.86,143.82,0.0504466]
[1768567281267,3.2502453,143.86,143.82,0.0504466]
[1768567281467,5.41882134,143.86,143.82,0.0504466]
[1768567282071,3.2502453,143.86,143.82,0.0504466]
[1768567282372,5.41882134,143.86,143.82,0.0504466]
[1768567283274,5.41696993,143.86,143.82,0.0504466]
[1768567288678,3.2502453,143.86,143.82,0.0504466]
[1768567288979,5.41696993,143.86,143.82,0.0504466]
[1768567290174,3.2502453,143.86,143.82,0.0504466]
[1768567299878,3.2502453,143.86,143.82,6.3101466]
[1768567300075,5.24561066,143.88,143.82,3.0576835]
[1768567300386,3.07888603,143.87,143.82,3.0576835]
[1768567300786,3.07888603,143.87,143.83,6.2595]
[1768567311791,3.07888603,143.87,143.82,6.3103466]
[1768567313389,5.24561066,143.87,143.82,6.3103466]
[1768567313589,3.15681627,143.86,143.82,6.3103466]
[1768567315294,5.3235409,143.85,143.82,0.0504466]
[1768567315489,5.3235409,143.85,143.8,6.2604]
[1768567315891,5.37048322,143.85,143.8,6.2604]
[1768567326096,3.15681627,143.84,143.75,97.4204]
[1768567326394,3.15681627,143.82,143.75,3.12661731]
[1768567326992,0.0462154,143.8,143.75,3.12661731]
[1768567327800,0.0462154,143.8,143.77,6.2617]
[1768567327993,0.0462154,143.8,143.77,9.38831731]
[1768567328999,0.0462154,143.8,143.76,3.12661731]
[1768567329798,0.0462154,143.8,143.76,9.38921731]
[1768567329998,0.0462154,143.8,143.76,3.12661731]
[1768567330600,3.15681627,143.82,143.77,6.2621]
[1768567331894,3.15681627,143.82,143.76,9.38921731]
[1768567338302,9.41681627,143.82,143.76,9.38921731]
[1768567339002,9.41681627,143.82,143.76,3.12661731]
[1768567339202,3.15681627,143.81,143.74,9.38981731]
[1768567339699,3.15681627,143.81,143.75,3.12661731]
[1768567342810,9.41721627,143.81,143.75,3.12661731]
[1768567343005,3.15681627,143.81,143.75,3.12661731]
[1768567343907,3.15681627,143.81,143.75,9.38961731]
[1768567344305,3.15681627,143.81,143.76,3.26213477]
[1768567348417,11.5851932,143.81,143.76,3.26213477]
[1768567349520,11.5851932,143.81,143.73,262.94]
[1768567349816,11.5851932,143.81,143.74,9.33531484]
[1768567350214,11.5851932,143.81,143.75,3.07191484]
[1768567352716,3.03415278,143.8,143.74,6.2634]
[1768567352916,3.03415278,143.8,143.74,9.33531484]
[1768567355122,3.03415278,143.79,143.74,3.07191484]
[1768567355317,3.03415278,143.79,143.73,262.94]
[1768567355318,3.03415278,143.78,143.72,9.33591484]
[1768567355916,3.03415278,143.78,143.74,0.05167567]
[1768567356118,0.04671443,143.76,143.74,0.05167567]
[1768567357317,0.04671443,143.76,143.71,262.96]
[1768567357720,0.04671443,143.76,143.71,266.03191484]
[1768567358122,0.04671443,143.76,143.71,3.07191484]
[1768567358929,6.30941443,143.76,143.71,3.07191484]
[1768567366131,0.04671443,143.76,143.71,3.07191484]
[1768567367030,0.04671443,143.76,143.71,9.33661484]
[1768567372837,0.04671443,143.76,143.72,3.04660596]
[1768567373043,2.99577416,143.81,143.74,3.04660596]
[1768567374844,9.25617416,143.81,143.75,3.04660596]
[1768567379948,6.2609,143.8,143.75,3.04660596]
[1768567380948,2.99577416,143.81,143.76,3.04660596]
[1768567381259,2.99577416,143.83,143.76,3.04660596]
[1768567381853,9.25577416,143.82,143.76,9.30910596]
[1768567382152,9.25577416,143.82,143.77,3.04660596]
[1768567384647,6.2604,143.81,143.77,3.04660596]
[1768567387047,2.99577416,143.82,143.77,3.04660596]
[1768567387850,2.99577416,143.84,143.78,3.04660596]
[1768567388752,9.25487416,143.84,143.78,3.04660596]
[1768567390654,2.99577416,143.83,143.78,3.04660596]
[1768567391758,9.25557416,143.83,143.78,3.04660596]
[1768567392853,2.99577416,143.82,143.77,6.262]
[1768567393760,2.99577416,143.82,143.77,9.30860596]
[1768567397760,9.25587416,143.82,143.77,3.04660596]
[1768567397967,2.99577416,143.81,143.75,9.30920596]
[1768567400362,2.99577416,143.81,143.75,6.2626]
[1768567400562,2.99577416,143.81,143.76,3.04660596]
[1768567401863,9.25627416,143.81,143.76,3.04660596]
[1768567409073,9.25627416,143.81,143.74,9.45775559]
[1768567409973,3.20887716,143.79,143.74,3.19435559]
[1768567410168,2.16829012,143.78,143.72,3.19435559]
[1768567410365,5.37716728,143.78,143.72,3.19435559]
[1768567410869,11.63926728,143.78,143.72,3.19435559]
[1768567411269,5.37716728,143.78,143.72,3.19435559]
[1768567411573,3.20887716,143.77,143.72,3.19435559]
[1768567412776,9.47107716,143.77,143.72,3.19435559]
[1768567414477,8.43089012,143.76,143.72,3.19435559]
[1768567414678,8.43089012,143.76,143.7,3.19435559]
[1768567422182,6.2626,143.76,143.7,3.19435559]
[1768567426681,9.47147716,143.76,143.7,3.19435559]
[1768567436982,6.2633,143.75,143.7,3.19435559]
[1768567441295,6.2626,143.76,143.7,3.19435559]
[1768567443395,6.2626,143.76,143.71,3.17326432]
[1768567444798,3.0432688,143.78,143.71,3.17326432]
[1768567450898,3.0432688,143.76,143.69,266.13326432]
[1768567455595,3.0432688,143.76,143.7,3.17326432]
[1768567458400,5.21155892,143.78,143.7,3.17326432]
[1768567458599,8.33916181,143.77,143.7,3.17326432]
[1768567458798,3.0432688,143.77,143.7,3.17326432]
[1768567459001,3.0432688,143.77,143.71,3.17326432]
[1768567459903,5.2960333,143.76,143.71,3.17326432]
[1768567460096,3.0432688,143.77,143.71,3.17326432]
[1768567462206,3.1412611,143.87,143.71,3.17326432]
[1768567462505,3.1412611,143.8,143.71,3.17326432]
[1768567462706,3.1412611,143.78,143.71,3.17326432]
[1768567464308,3.1412611,143.77,143.71,3.17326432]
[1768567465704,3.1412611,143.8,143.71,3.17326432]
[1768567466005,13.44003147,143.79,143.73,3.28842016]
[1768567466205,5.29494288,143.78,143.73,3.28842016]
[1768567466405,3.1412611,143.79,143.73,3.28842016]
[1768567466600,5.2945193,143.78,143.73,3.28842016]
[1768567466797,3.1412611,143.79,143.73,3.28842016]
[1768567467006,5.2944869,143.78,143.73,3.28842016]
[1768567467308,3.1412611,143.79,143.73,3.28842016]
[1768567468010,3.1412611,143.79,143.73,5.45707145]
[1768567470211,8.44560067,143.78,143.71,5.26085784]
[1768567470411,3.15244723,143.78,143.71,5.26085784]
[1768567472915,3.15244723,143.78,143.72,3.09220655]
[1768567502534,3.15244723,143.78,143.7,3.09105468]
[1768567502939,3.15244723,143.78,143.68,3.09105468]
[1768567502940,3.03734847,143.77,143.68,3.09105468]
[1768567503837,3.03734847,143.75,143.68,3.09105468]
[1768567505240,3.03734847,143.75,143.66,5.25970597]
[1768567505445,3.03734847,143.75,143.67,3.09105468]
[1768567505839,9.30084847,143.74,143.67,9.35725468]
[1768567507042,9.30084847,143.74,143.67,3.09105468]
[1768567510437,6.264,143.73,143.67,3.09105468]
[1768567510940,6.264,143.73,143.67,5.25970597]
[1768567511543,6.264,143.73,143.68,3.09105468]
[1768567511944,3.03734847,143.74,143.68,3.09105468]
[1768567513643,3.03734847,143.76,143.7,3.09105468]
[1768567513848,3.03734847,143.78,143.7,3.09105468]
[1768567514146,5.27493773,143.77,143.7,3.09105468]
[1768567514340,3.03734847,143.77,143.7,3.09105468]
[1768567514741,3.03734847,143.77,143.7,9.35585468]
[1768567514948,3.03734847,143.77,143.71,3.09105468]
[1768567515944,3.03734847,143.77,143.71,9.35565468]
[1768567519747,3.03734847,143.77,143.72,3.09105468]
[1768567520051,6.2621,143.78,143.72,9.35525468]
[1768567520548,9.29864847,143.79,143.72,3.09105468]
[1768567521646,8.56179224,143.78,143.72,3.09105468]
[1768567521950,3.28690239,143.78,143.72,3.09105468]
[1768567522251,3.28690239,143.77,143.72,3.09105468]
[1768567522552,3.28690239,143.77,143.7,3.1286901]
[1768567523050,3.28690239,143.76,143.7,3.1286901]
[1768567523752,9.54950239,143.76,143.7,9.3937901]
[1768567529156,3.28690239,143.76,143.7,9.3937901]
[1768567529354,3.28690239,143.76,143.71,3.09027596]
[1768567529550,3.28690239,143.76,143.71,9.35497596]
[1768567530358,97.3892,143.81,143.71,9.35497596]
[1768567530359,6.2623,143.77,143.71,9.35497596]
[1768567530559,3.05460412,143.77,143.71,9.35497596]
[1768567536162,9.31680412,143.77,143.71,9.35497596]
[1768567536467,3.05460412,143.76,143.71,9.35497596]
[1768567538966,6.2622,143.77,143.71,9.35497596]
[1768567539868,6.2622,143.77,143.72,3.09027596]
[1768567541871,11.48582918,143.78,143.72,3.09027596]
[1768567543571,3.05460412,143.76,143.7,3.09027596]
[1768567543767,3.05460412,143.75,143.7,3.09027596]
[1768567544773,9.31770412,143.75,143.7,3.09027596]
[1768567547475,9.31770412,143.75,143.68,9.35637596]
[1768567549474,5.22412918,143.74,143.68,3.09027596]
[1768567549874,5.22412918,143.74,143.66,6.2665]
[1768567549875,5.22412918,143.72,143.66,3.09027596]
[1768567550780,11.48852918,143.72,143.66,3.09027596]
[1768567555285,5.22412918,143.72,143.66,9.35717596]
[1768567556791,11.48842918,143.72,143.66,9.35717596]
[1768567556984,9.31890412,143.72,143.66,9.35717596]
[1768567559990,3.21458957,143.71,143.66,3.09027596]
[1768567560493,5.38411463,143.71,143.64,3.17647725]
[1768567560688,3.21458957,143.7,143.64,3.17647725]
[1768567560888,5.38411463,143.69,143.64,3.17647725]
[1768567561785,3.21458957,143.69,143.64,3.17647725]
[1768567561991,3.21458957,143.72,143.65,3.17647725]
[1768567562892,3.21458957,143.72,143.66,9.44337725]
[1768567566502,3.21458957,143.71,143.64,9.44407725]
[1768567567397,3.21458957,143.7,143.64,9.44407725]
[1768567568004,3.21458957,143.7,143.65,3.17647725]
[1768567572007,3.21458957,143.7,143.65,9.44367725]
[1768567572509,5.38411463,143.72,143.66,3.17647725]
[1768567574708,5.38411463,143.72,143.66,9.44337725]
[1768567579214,2.16952506,143.72,143.67,9.44297725]
[1768567579513,5.38411463,143.74,143.67,3.17647725]
[1768567579909,3.21458957,143.73,143.67,3.17647725]
[1768567581914,3.21458957,143.73,143.67,9.44297725]
[1768567584716,3.21458957,143.73,143.68,6.2659]
[1768567585013,3.26294075,143.75,143.68,3.24579373]
[1768567585212,5.43246581,143.75,143.68,3.24579373]
[1768567585516,5.43246581,143.77,143.68,3.24579373]
[1768567585719,5.27436934,143.76,143.68,3.24579373]
[1768567585915,5.43246581,143.77,143.68,3.24579373]
[1768567586115,5.27436934,143.76,143.71,6.2647]
[1768567586308,11.69456581,143.77,143.71,6.2647]
[1768567586309,3.26294075,143.77,143.71,3.24579373]
[1768567587915,3.26294075,143.77,143.72,9.50989373]
[1768567590216,3.26294075,143.77,143.72,3.24579373]
[1768567592826,9.52504075,143.77,143.72,3.24579373]
[1768567594326,11.69423742,143.77,143.7,9.53972078]
[1768567596326,11.69423742,143.77,143.71,3.27492078]
[1768567596632,9.52504075,143.77,143.71,3.27492078]
[1768567596829,11.69423742,143.77,143.71,3.27492078]
[1768567599030,9.52504075,143.77,143.71,3.27492078]
[1768567602034,3.26294075,143.77,143.71,3.27492078]
[1768567603638,3.29738346,143.75,143.69,9.54042078]
[1768567603837,3.29738346,143.75,143.7,3.27492078]
[1768567604338,3.29738346,143.75,143.7,9.54012078]
[1768567604725,3.29738346,143.75,143.7,3.27492078]
[1768567605235,2.16919667,143.76,143.7,3.27492078]
[1768567605837,2.16919667,143.76,143.71,6.2647]
[1768567606934,5.46658013,143.77,143.71,6.2647]
[1768567608942,11.72878013,143.77,143.71,6.2647]
[1768567609440,11.72878013,143.77,143.7,3.27492078]
[1768567610642,3.29738346,143.76,143.7,3.27492078]
[1768567610943,9.56008346,143.76,143.7,3.27492078]
[1768567618444,3.26251367,143.75,143.7,3.27492078]
[1768567619347,9.52561367,143.75,143.7,3.27492078]
[1768567620143,3.26251367,143.74,143.69,6.2654]
[1768567621449,3.26251367,143.74,143.69,9.44431139]
[1768567625445,2.16919667,143.75,143.69,9.44431139]
[1768567625652,5.43171034,143.75,143.69,9.44431139]
[1768567640772,9.52621367,143.74,143.67,9.44521139]
[1768567640964,5.43171034,143.73,143.67,9.44521139]
[1768567641767,11.69571034,143.73,143.67,9.44521139]
[1768567651287,11.69759435,143.73,143.67,9.44521139]
[1768567653680,11.69759435,143.73,143.63,297.99843663]
[1768567653681,3.30950613,143.71,143.66,6.2669]
[1768567653877,3.30950613,143.71,143.66,9.47910427]
[1768567658993,3.30950613,143.71,143.66,3.21220427]
[1768567665099,9.57430613,143.71,143.66,3.21220427]
[1768567674910,9.57430613,143.71,143.64,9.28063854]
[1768567675313,8.56544807,143.7,143.64,3.01283854]
[1768567675507,3.27656661,143.7,143.64,3.01283854]
[1768567675711,3.27656661,143.7,143.63,264.35085595]
[1768567675912,3.27656661,143.7,143.63,267.36369449]
[1768567676112,5.44764729,143.7,143.63,267.36369449]
[1768567676812,6.2656,143.69,143.63,273.63179449]
[1768567677008,3.27656661,143.69,143.63,273.63179449]
[1768567681819,9.54226661,143.69,143.63,10.49179449]
[1768567682019,3.27656661,143.68,143.63,3.01283854]
[1768567682320,3.27656661,143.68,143.61,266.17283854]
[1768567682517,3.27656661,143.68,143.62,9.28143854]
[1768567682824,3.27656661,143.68,143.63,3.01283854]
[1768567686821,9.54266661,143.68,143.63,3.01283854]
[1768567687018,3.27656661,143.68,143.63,3.01283854]
[1768567688832,3.27656661,143.66,143.6,3.01283854]
[1768567689918,3.27656661,143.66,143.61,3.01283854]
[1768567689919,9.54356661,143.66,143.61,3.01283854]
[1768567691231,3.27656661,143.65,143.59,6.2699]
[1768567691433,3.27656661,143.65,143.59,3.01283854]
[1768567692735,5.44764729,143.65,143.59,3.01283854]
[1768567692931,11.71504729,143.65,143.59,3.01283854]
[1768567694832,3.27656661,143.64,143.59,3.01283854]
[1768567695132,3.27656661,143.64,143.58,6.2704]
[1768567695430,3.27656661,143.64,143.58,9.28323854]
[1768567695631,3.27656661,143.64,143.59,9.28283854]
[1768567704850,11.55140877,143.66,143.59,9.28283854]
[1768567705243,9.38032809,143.66,143.6,3.10240763]
[1768567705440,3.11342809,143.69,143.62,3.10240763]
[1768567706852,9.37912809,143.69,143.63,9.37060763]
[1768567707046,3.11342809,143.69,143.63,9.37060763]
[1768567707349,9.37922809,143.69,143.61,9.37120763]
[1768567707546,3.11342809,143.68,143.61,9.37120763]
[1768567708854,3.0356409,143.67,143.61,9.37120763]
[1768567711054,3.0356409,143.66,143.59,3.29117759]
[1768567711850,3.0356409,143.66,143.6,6.2695]
[1768567712153,3.0356409,143.65,143.59,3.29117759]
[1768567713754,3.0356409,143.65,143.59,9.56107759]
[1768567714051,3.0356409,143.67,143.59,3.29117759]
[1768567714249,3.0356409,143.67,143.6,3.29117759]
[1768567715855,3.0356409,143.67,143.62,6.2686]
[1768567717254,6.2665,143.68,143.63,3.29117759]
[1768567717452,3.0356409,143.69,143.63,9.55937759]
[1768567717658,2.17302476,143.7,143.64,3.29117759]
[1768567717958,3.0356409,143.71,143.64,3.29117759]
[1768567718953,9.3007409,143.71,143.64,9.55887759]
[1768567720960,3.0356409,143.71,143.65,9.55847759]
[1768567734373,5.28552426,143.7,143.63,9.33166847]
[1768567734574,3.1124995,143.69,143.63,9.33166847]
[1768567735577,9.3784995,143.69,143.63,3.06376847]
[1768567736676,3.1124995,143.68,143.63,3.06376847]
[1768567737973,9.3785995,143.68,143.63,3.06376847]
[1768567739877,6.2665,143.67,143.63,3.06376847]
[1768567741179,9.3789995,143.67,143.61,9.33286847]
[1768567741378,9.3789995,143.67,143.61,3.06376847]
[1768567741379,6.267,143.66,143.61,3.06376847]
[1768567744982,3.1124995,143.67,143.61,3.06376847]
[1768567745680,9.3791995,143.67,143.61,3.06376847]
[1768567749986,6.267,143.66,143.61,3.06376847]
[1768567754491,3.1124995,143.67,143.61,3.06376847]
[1768567754492,6.2674,143.65,143.61,3.06376847]
[1768567761103,6.2668,143.67,143.61,3.06376847]
[1768567762100,6.2661,143.68,143.61,9.33246847]
[1768567762408,6.2661,143.68,143.62,3.30147719]
[1768567765609,9.2604282,143.68,143.62,3.30147719]
[1768567767014,6.2666,143.67,143.62,3.30147719]
[1768567767311,2.9943282,143.66,143.61,6.2687]
[1768567767815,9.2613282,143.66,143.6,3.30147719]
[1768567772119,6.2674,143.65,143.6,3.30147719]
[1768567775719,9.2613282,143.66,143.6,3.30147719]
[1768567775922,6.267,143.66,143.6,3.30147719]
[1768567777318,6.2674,143.65,143.6,3.30147719]
[1768567777517,3.04799566,143.66,143.6,3.30147719]
[1768567778016,6.2674,143.65,143.6,3.30147719]
[1768567779224,6.268,143.64,143.58,28.41233106]
[1768567781922,11.48849886,143.64,143.58,28.41233106]
[1768567782620,9.31599566,143.64,143.59,3.14193106]
[1768567782824,6.268,143.64,143.59,3.14193106]
[1768567785323,9.31539566,143.65,143.59,3.14193106]
[1768567785929,6.2678,143.64,143.59,3.14193106]
[1768567790130,3.04799566,143.63,143.57,10.62426694]
[1768567790522,3.04799566,143.63,143.58,3.14193106]
[1768567791516,6.2678,143.64,143.58,3.14193106]
[1768567797638,3.26147533,143.63,143.58,3.14193106]
[1768567798234,9.52967533,143.63,143.58,3.14193106]
[1768567800043,3.26147533,143.63,143.58,3.14193106]
[1768567801142,5.43397853,143.63,143.58,3.14193106]
[1768567802740,3.26147533,143.62,143.57,1.21163588]
[1768567802947,3.26147533,143.62,143.56,3.09375346]
[1768567804848,3.26147533,143.62,143.56,9.36495346]
[1768567808542,3.26147533,143.62,143.57,3.09375346]
[1768567809350,3.26147533,143.61,143.55,4.30574803]
[1768567809557,5.43397853,143.61,143.55,3.09375346]
[1768567810650,5.43397853,143.61,143.56,3.09375346]
[1768567810852,6.2687,143.62,143.56,3.09375346]
[1768567811655,9.53017533,143.62,143.56,3.09375346]
[1768567811854,9.53017533,143.62,143.56,9.36505346]
[1768567812950,9.53017533,143.62,143.56,3.09375346]
[1768567815358,3.26147533,143.62,143.56,3.09375346]
[1768567817051,9.53017533,143.62,143.56,3.09375346]
[1768567818656,3.26147533,143.61,143.56,3.09375346]
[1768567818856,3.26147533,143.6,143.54,3.09375346]
[1768567819861,6.27,143.59,143.54,3.09375346]
[1768567821558,6.2705,143.58,143.54,3.09375346]
[1768567821765,9.34912186,143.58,143.53,1.21218454]
[1768567823564,9.34912186,143.58,143.52,266.39873159]
[1768567823958,6.2709,143.57,143.52,266.39873159]
[1768567824666,3.07862186,143.55,143.5,3.11873159]
[1768567824863,3.07862186,143.57,143.5,3.11873159]
[1768567825773,9.34952186,143.57,143.5,3.11873159]
[1768567827675,3.07862186,143.56,143.5,3.11873159]
[1768567828370,9.34992186,143.56,143.5,3.11873159]
[1768567830679,11.52242506,143.56,143.5,3.11873159]
[1768567833578,9.59009622,143.55,143.49,4.53429522]
[1768567834780,3.31819622,143.54,143.49,4.53429522]
[1768567834979,3.31819622,143.53,143.48,263.32]
[1768567837776,3.31819622,143.53,143.48,266.64170942]
[1768567838075,3.31819622,143.53,143.48,3.32170942]
[1768567838672,9.59089622,143.53,143.48,3.32170942]
[1768567838872,11.76731041,143.53,143.48,3.32170942]
[1768567839383,3.31819622,143.52,143.47,263.38]
[1768567839581,5.49461041,143.51,143.46,4.53450652]
[1768567841683,5.49461041,143.51,143.46,3.32170942]
[1768567841684,11.76811041,143.51,143.46,3.32170942]
[1768567844286,6.2742,143.5,143.44,267.93467561]
[1768567844588,3.31819622,143.5,143.44,267.93467561]
[1768567845080,3.31819622,143.5,143.44,264.61296619]
[1768567845278,6.2744,143.49,143.44,264.61296619]
[1768567845479,9.59259622,143.49,143.44,264.61296619]
[1768567846287,9.59259622,143.49,143.44,263.4]
[1768567848484,9.59259622,143.49,143.42,9.59910942]
[1768567848692,3.31819622,143.48,143.42,9.59910942]
[1768567848889,3.31819622,143.48,143.42,4.53488704]
[1768567849287,3.31819622,143.47,143.41,263.46]
[1768567850185,3.31819622,143.46,143.4,3.32170942]
[1768567851486,3.11320146,143.45,143.39,1.21341028]
[1768567852084,3.11320146,143.45,143.38,3.18317714]
[1768567852483,6.2766,143.44,143.38,3.18317714]
[1768567853487,9.38980146,143.44,143.38,3.18317714]
[1768567854892,3.11320146,143.44,143.38,3.18317714]
[1768567855792,3.11320146,143.46,143.39,3.18317714]
[1768567856495,3.11320146,143.46,143.4,3.18317714]
[1768567857095,3.11320146,143.48,143.4,3.18317714]
[1768567857884,3.11320146,143.48,143.41,3.18317714]
[1768567858492,3.11320146,143.48,143.4,6.2782]
[1768567858791,3.11320146,143.46,143.4,6.2782]
[1768567859595,3.11320146,143.46,143.4,9.46137714]
[1768567859996,3.11320146,143.48,143.41,3.18317714]
[1768567861290,3.11320146,143.46,143.39,3.18317714]
[1768567862792,6.2763,143.45,143.39,3.18317714]
[1768567862990,9.38950146,143.45,143.39,3.18317714]
[1768567863299,3.11320146,143.45,143.39,3.18317714]
[1768567864397,9.38940146,143.45,143.39,3.18317714]
[1768567864894,3.11320146,143.44,143.37,1.21355838]
[1768567865101,3.11320146,143.42,143.34,3.18317714]
[1768567865298,5.28961565,143.41,143.34,3.18317714]
[1768567865691,3.11320146,143.4,143.34,3.18317714]
[1768567866195,3.11320146,143.4,143.34,9.46407714]
[1768567868703,3.11320146,143.4,143.34,3.18317714]
[1768567868704,9.39160146,143.4,143.34,3.18317714]
[1768567871802,9.39100146,143.42,143.35,3.18317714]
[1768567872408,9.39100146,143.42,143.35,5.35959133]
[1768567872604,6.2779,143.41,143.35,5.35959133]
[1768567873704,9.39110146,143.41,143.35,5.35959133]
[1768567874309,9.39110146,143.41,143.35,3.18317714]
[1768567874609,9.39050146,143.43,143.36,3.18317714]
[1768567874903,9.39050146,143.43,143.36,5.35959133]
[1768567875109,9.39050146,143.43,143.37,3.18317714]
[1768567875310,5.28961565,143.43,143.37,3.18317714]
[1768567875606,3.11320146,143.42,143.35,3.18317714]
[1768567876099,6.2774,143.43,143.35,3.18317714]
[1768567876300,6.2774,143.43,143.37,3.18317714]
[1768567877711,3.11320146,143.44,143.38,3.18317714]
[1768567878813,9.38980146,143.44,143.38,3.18317714]
[1768567885820,3.11710729,143.46,143.4,3.16952736]
[1768567886420,6.2753,143.47,143.41,3.16952736]
[1768567886924,9.39240729,143.47,143.41,3.16952736]
[1768567889130,3.11710729,143.47,143.41,9.44732736]
[1768567890830,9.49759151,143.49,143.42,9.45081088]
[1768567891023,3.22279151,143.49,143.43,3.17341088]
[1768567891420,11.6740057,143.48,143.41,3.17341088]
[1768567891726,3.22279151,143.47,143.41,3.17341088]
[1768567892830,3.22279151,143.47,143.41,9.45121088]
[1768567895135,6.2748,143.48,143.42,9.45081088]
[1768567896536,3.22279151,143.49,143.43,3.17341088]
[1768567897838,9.49719151,143.49,143.43,3.17341088]
[1768567900339,3.22279151,143.49,143.43,9.45031088]
[1768567901840,3.22279151,143.47,143.41,9.45081088]
[1768567902434,5.4005985,143.47,143.41,9.45081088]
[1768567902641,3.22279151,143.46,143.39,28.45171088]
[1768567903443,5.4005985,143.45,143.39,28.45171088]
[1768567903638,5.4005985,143.45,143.39,9.45171088]
[1768567903835,5.4005985,143.45,143.39,3.17341088]
[1768567904844,11.6766985,143.45,143.39,3.17341088]
[1768567908847,9.49889151,143.45,143.39,3.17341088]
[1768567909041,11.6766985,143.45,143.39,3.17341088]
[1768567912948,8.45350699,143.46,143.4,3.24846432]
[1768567913140,11.68134932,143.46,143.4,3.24846432]
[1768567913341,5.40564932,143.46,143.4,3.24846432]
[1768567914045,3.22784233,143.46,143.4,3.24846432]
[1768567914841,3.22784233,143.46,143.4,9.52666432]
[1768567915646,8.45300699,143.47,143.42,3.24846432]
[1768567917954,6.2752,143.47,143.42,3.24846432]
[1768567918850,6.2757,143.46,143.42,3.24846432]
[1768567919056,3.22784233,143.48,143.42,3.24846432]
[1768567919353,3.22784233,143.46,143.4,3.24846432]
[1768567920457,9.50354233,143.46,143.4,3.24846432]
[1768567920754,5.40564932,143.49,143.4,3.24846432]
[1768567921756,11.68034932,143.49,143.42,6.2774]
[1768567921956,11.68034932,143.49,143.42,9.52586432]
[1768567923152,9.50254233,143.49,143.42,9.52586432]
[1768567923756,3.22784233,143.48,143.42,9.52586432]
[1768567926860,6.2747,143.49,143.43,9.52546432]
[1768567927256,9.50254233,143.49,143.43,9.52546432]
[1768567927456,9.50254233,143.49,143.43,3.24846432]
[1768567927656,8.52511531,143.48,143.41,9.52586432]